bitfinex/quotes_ETHUSD_20251107
["timestamp","ask_amount","ask_price","bid_price","bid_amount"]
[1762525739978,5.01244235,3235.9,3235.8,0.001]
[1762525740393,0.2007,3235.9,3235.8,0.001]
[1762525740556,0.4617,3236.5,3235.8,0.4585]
[1762525740760,0.4617,3236.5,3235.8,3.09140973]
[1762525741064,0.4617,3236.5,3236.1,0.001]
[1762525741400,0.4617,3236.8,3236.1,0.001]
[1762525741599,1.721412,3236.8,3236.1,3.09106029]
[1762525741754,0.4617,3236.8,3236.1,0.001]
[1762525741961,0.1977,3236.9,3236.4,3.08979636]
[1762525742205,0.4629,3237.3,3236.4,0.61798402]
[1762525742385,1.259712,3237.1,3236.3,3.08986261]
[1762525742703,0.48244823,3237.3,3236.1,0.001]
[1762525743000,3.08938825,3236.9,3236.1,0.001]
[1762525743180,3.08959688,3236.7,3236.1,0.001]
[1762525743387,0.6594,3236.8,3236.2,3.09004387]
[1762525743560,0.1977,3236.8,3236.1,0.1849]
[1762525744396,3.08976184,3236.5,3236.1,0.001]
[1762525744571,3.08968805,3236.6,3236.1,0.001]
[1762525744775,3.08957463,3236.7,3236.1,3.27498081]
[1762525744972,3.08977404,3236.5,3236.1,0.001]
[1762525745179,3.08985392,3236.4,3236.1,0.001]
[1762525745774,0.4557,3236.7,3236.1,0.001]
[1762525745979,0.4557,3236.7,3236.1,3.09109971]
[1762525746180,0.4557,3236.7,3236.1,0.001]
[1762525746181,3.08974244,3236.6,3236.1,0.001]
[1762525746401,0.1878,3236.9,3236.4,3.08979599]
[1762525746577,4.34883982,3237.2,3236.5,3.08966262]
[1762525746778,0.0012,3237.3,3237.1,3.08911933]
[1762525747078,0.0012,3237.3,3237.0,3.08924016]
[1762525747499,0.0012,3237.3,3237.1,3.08916816]
[1762525747895,0.0012,3237.3,3236.7,0.4939]
[1762525748097,0.0012,3237.3,3236.1,1.75634181]
[1762525748098,0.0012,3237.3,3237.2,3.77558933]
[1762525748296,0.0012,3237.3,3237.1,3.08912795]
[1762525748603,0.0004,3237.3,3237.0,3.08928019]
[1762525749106,0.0004,3237.3,3237.2,3.58908933]
[1762525749309,0.0004,3237.3,3237.2,0.5]
[1762525749519,0.0004,3237.3,3237.1,0.1865]
[1762525749809,0.0004,3237.3,3237.2,3.08908933]
[1762525750180,0.0004,3237.3,3237.1,0.1865]
[1762525750384,0.0045,3237.2,3236.9,3.08929915]
[1762525750609,0.0045,3237.2,3236.1,0.49662981]
[1762525750813,3.57703262,3236.8,3236.2,3.08997953]
[1762525752412,0.1536,3236.7,3236.2,3.56895101]
[1762525752594,3.24319672,3236.7,3236.2,0.47894148]
[1762525752794,0.6093,3236.7,3236.2,0.1544]
[1762525753002,0.1536,3236.7,3236.2,0.1544]
[1762525753185,3.08992477,3236.4,3236.2,0.1544]
[1762525753387,0.2209,3236.3,3236.1,0.001]
[1762525753684,0.1536,3236.2,3236.1,0.001]
[1762525754211,0.1536,3236.4,3236.1,0.001]
[1762525754566,0.1878,3236.9,3236.1,0.001]
[1762525754785,0.1536,3236.6,3236.1,0.001]
[1762525754992,0.1536,3236.6,3236.2,3.09002963]
[1762525755288,0.1536,3236.6,3236.1,0.001]
[1762525755717,0.1536,3236.6,3236.5,3.58975745]
[1762525755917,0.0004,3237.3,3237.2,3.08908933]
[1762525756126,0.0004,3237.3,3237.1,3.08916928]
[1762525756296,0.0004,3237.3,3237.0,3.08921895]
[1762525756499,0.0004,3237.3,3237.1,3.08918025]
[1762525756692,0.0004,3237.3,3237.2,3.08908933]
[1762525757094,0.0004,3237.3,3237.1,3.08914559]
[1762525757292,0.0004,3237.3,3236.8,0.1544]
[1762525758006,0.0004,3237.3,3237.0,3.08927154]
[1762525758334,0.79993394,3237.3,3236.8,0.1544]
[1762525758584,0.1536,3237.2,3236.8,3.08947108]
[1762525758718,0.1536,3237.2,3236.9,3.08934957]
[1762525758925,0.1536,3237.2,3236.6,0.1544]
[1762525759303,3.08923727,3237.1,3236.5,3.08974012]
[1762525759508,0.1536,3236.9,3236.5,3.08974012]
[1762525759834,0.1536,3236.9,3236.4,0.1544]
[1762525760007,0.7971,3236.9,3236.4,0.1544]
[1762525760207,3.8865195,3236.9,3236.4,0.1544]
[1762525760443,3.8865195,3236.9,3236.4,3.24422967]
[1762525760748,0.7971,3236.9,3236.5,3.08975683]
[1762525760913,0.7971,3236.9,3236.4,0.1544]
[1762525760914,0.3414,3236.9,3236.4,0.1544]
[1762525761250,0.4557,3236.8,3236.4,0.1544]
[1762525761406,0.2209,3236.5,3236.2,3.09004387]
[1762525761600,0.2209,3236.5,3236.3,3.0899355]
[1762525761805,0.1536,3236.7,3236.1,0.8358]
[1762525762041,0.1536,3236.7,3236.3,3.08988446]
[1762525762200,0.1536,3236.7,3236.1,3.43195341]
[1762525762417,3.08971331,3236.6,3236.1,0.1554]
[1762525762719,4.04200275,3236.7,3236.1,3.24553284]
[1762525763056,3.08966199,3236.6,3236.1,0.1554]
[1762525763553,0.4557,3236.6,3236.1,0.1554]
[1762525763708,0.4557,3236.6,3236.1,3.24553316]
[1762525764214,0.4557,3236.6,3236.2,3.09003839]
[1762525764412,0.1536,3236.7,3236.2,1.12756713]
[1762525764714,0.1536,3236.7,3236.4,3.08985292]
[1762525764936,0.1536,3236.7,3236.1,0.1554]
[1762525764937,0.2209,3236.5,3236.1,0.1554]
[1762525765251,0.2209,3236.5,3236.2,3.0899692]
[1762525765444,0.2209,3236.5,3236.1,0.1554]
[1762525766037,0.1536,3236.7,3236.4,3.08978707]
[1762525766236,0.1536,3236.7,3236.3,3.08990454]
[1762525766440,0.1536,3236.7,3236.1,3.24551305]
[1762525766441,3.08973209,3236.6,3236.1,0.1554]
[1762525766761,0.2989,3236.2,3236.1,0.001]
[1762525767076,3.38894387,3236.2,3236.1,0.001]
[1762525767281,3.8625921,3236.2,3236.1,0.001]
[1762525767772,3.84304387,3236.2,3236.1,0.001]
[1762525767936,4.53633633,3236.2,3236.1,0.001]
[1762525768140,4.55588456,3236.2,3236.1,0.001]
[1762525768364,3.0907124,3235.5,3235.4,0.001]
[1762525768538,11.74730473,3235.5,3235.4,0.001]
[1762525768868,13.28128334,3235.5,3235.4,0.001]
[1762525769066,3.20659461,3235.5,3235.4,0.001]
[1762525769379,6.29730701,3235.5,3235.4,0.001]
[1762525769535,3.20659461,3235.5,3235.4,0.001]
[1762525770293,5.03759501,3235.5,3235.4,0.001]
[1762525770641,3.5538124,3235.5,3235.4,0.001]
[1762525770987,1.95300446,3236.2,3235.4,0.001]
[1762525771170,0.4557,3236.2,3235.4,0.001]
[1762525771369,0.4557,3235.8,3235.4,0.001]
[1762525771679,4.6493244,3235.5,3235.4,0.001]
[1762525771885,5.57079008,3235.5,3235.4,0.001]
[1762525772044,6.02489008,3235.5,3235.4,0.001]
[1762525772241,6.00534185,3235.5,3235.4,0.001]
[1762525773144,13.39482218,3235.5,3235.4,0.001]
[1762525774984,13.8797389,3235.5,3235.4,0.001]
[1762525777282,6.49025857,3235.5,3235.4,0.001]
[1762525779074,3.39954617,3235.5,3235.4,0.001]
[1762525779400,4.6493244,3235.5,3235.4,0.001]
[1762525779706,5.0996244,3235.5,3235.4,0.001]
[1762525779903,12.10314896,3235.5,3235.4,0.001]
[1762525780064,12.08360073,3235.5,3235.4,0.001]
[1762525780998,12.48910473,3235.5,3235.4,0.001]
[1762525781311,4.75602393,3235.4,3235.1,0.001]
[1762525781468,5.23602393,3235.4,3235.1,0.001]
[1762525781805,5.25557216,3235.4,3235.1,0.001]
[1762525782507,4.75621501,3235.2,3235.1,0.001]
[1762525782663,5.88522036,3235.2,3235.1,0.001]
[1762525783005,6.35692036,3235.2,3235.1,0.001]
[1762525783301,6.33737213,3235.2,3235.1,0.001]
[1762525785217,5.93186813,3235.2,3235.1,0.001]
[1762525786409,5.95141636,3235.2,3235.1,0.001]
[1762525787686,6.35692036,3235.2,3235.1,0.001]
[1762525787890,6.33737213,3235.2,3235.1,0.001]
[1762525788505,5.46016813,3235.2,3235.1,0.001]
[1762525788678,5.93186813,3235.2,3235.1,0.001]
[1762525789823,2.38871735,3235.2,3235.1,0.001]
[1762525790037,6.98397633,3235.9,3235.1,1.1684]
[1762525790242,6.98397633,3235.9,3235.2,0.4979]
[1762525790398,6.98397633,3236.5,3235.2,0.4861]
[1762525791096,3.09053285,3235.7,3235.5,0.4979]
[1762525791298,3.09077358,3235.5,3235.1,0.1844]
[1762525791520,0.17314823,3235.5,3235.1,0.1844]
[1762525791710,0.17314823,3235.5,3235.4,0.4979]
[1762525792194,3.26386063,3235.5,3235.4,0.4979]
[1762525792394,3.09089715,3235.4,3235.1,0.1844]
[1762525792592,0.1536,3235.2,3235.1,0.001]
[1762525793121,0.1536,3235.2,3235.1,1.1684]
[1762525794133,0.1528,3235.2,3235.1,1.1684]
[1762525794797,0.1528,3235.2,3235.1,0.6823]
[1762525795009,0.1528,3235.2,3235.1,1.1684]
[1762525795441,0.1528,3235.2,3235.1,0.4989]
[1762525795656,0.1528,3235.2,3235.1,0.001]
[1762525795938,0.1528,3235.2,3235.1,0.4989]
[1762525796454,0.1528,3235.2,3235.1,0.001]
[1762525796748,0.1528,3235.2,3235.1,0.4989]
[1762525797515,0.1528,3235.2,3235.1,0.001]
[1762525797949,3.24379901,3235.2,3235.1,0.001]
[1762525798109,3.52679901,3235.2,3235.1,0.001]
[1762525798311,0.1528,3235.2,3235.1,0.001]
[1762525798562,3.8707222,3235.2,3235.1,0.001]
[1762525798721,5.42788597,3235.2,3235.1,0.001]
[1762525799226,4.95808597,3235.2,3235.1,0.001]
[1762525799436,1.58408696,3235.2,3235.1,0.001]
[1762525799743,4.63561101,3235.2,3235.1,0.001]
[1762525800281,6.98597633,3235.9,3235.1,0.6823]
[1762525800282,0.002,3235.9,3235.1,0.6823]
[1762525800481,3.77950301,3235.2,3235.1,0.001]
[1762525800630,5.05876324,3235.2,3235.1,0.001]
[1762525800977,3.09109455,3235.1,3235.0,0.001]
[1762525801127,3.09109455,3235.1,3234.7,0.001]
[1762525801128,3.09138122,3234.8,3234.7,0.001]
[1762525801330,3.09166795,3234.5,3233.4,0.001]
[1762525801535,3.09233718,3233.8,3233.4,0.001]
[1762525801841,3.49812809,3233.5,3233.4,0.001]
[1762525802057,7.36910868,3233.8,3233.4,0.001]
[1762525802058,0.34978412,3233.8,3233.4,0.001]
[1762525802257,0.1916,3234.3,3233.7,0.4979]
[1762525802579,0.4585,3233.8,3233.4,0.001]
[1762525802740,4.35613609,3233.5,3233.4,0.001]
[1762525803076,1.259712,3233.5,3233.4,0.001]
[1762525803367,4.35233609,3233.5,3233.4,0.001]
[1762525803570,5.95356941,3233.5,3233.4,0.001]
[1762525803929,6.35907341,3233.5,3233.4,0.001]
[1762525804274,6.33952518,3233.5,3233.4,0.001]
[1762525805081,2.00419709,3233.5,3233.4,0.001]
[1762525805230,0.405504,3233.2,3231.3,0.4613]
[1762525805431,1.259712,3232.0,3229.7,0.4861]
[1762525805674,1.259712,3232.0,3229.3,6.98397633]
[1762525805675,1.259712,3231.5,3230.7,0.6447]
[1762525805981,3.09472967,3231.3,3230.4,0.1866]
[1762525806153,0.45496367,3231.4,3230.4,0.1866]
[1762525806154,0.01954823,3231.2,3230.4,0.1866]
[1762525806360,1.27926023,3231.2,3230.4,0.1866]
[1762525806559,3.09549605,3230.5,3230.0,5.0]
[1762525806733,0.30954961,3230.5,3230.0,5.0]
[1762525806932,3.09565568,3230.4,3230.1,0.1866]
[1762525807267,4.73019138,3230.1,3230.0,5.0]
[1762525807685,4.73019138,3230.1,3230.0,5.4985]
[1762525807686,1.259712,3230.1,3230.0,5.4985]
[1762525807978,0.43541544,3231.4,3230.0,5.4985]
[1762525807979,0.6542,3231.7,3230.0,5.9598]
[1762525808178,1.259712,3231.0,3230.1,1.24388]
[1762525808488,3.09578354,3230.2,3230.1,0.1866]
[1762525808698,4.50839138,3230.1,3230.0,5.0]
[1762525808973,7.17107633,3231.7,3230.2,3.09578354]
[1762525809183,4.34078465,3233.3,3230.4,0.4985]
[1762525809184,1.259712,3231.3,3230.4,0.4985]
[1762525809336,0.14644823,3231.9,3230.4,0.4985]
[1762525809688,0.48557564,3232.2,3230.5,0.4613]
[1762525809840,0.1878,3233.2,3232.1,0.4985]
[1762525810034,3.09348482,3232.7,3232.1,0.4985]
[1762525810226,0.30934848,3232.6,3231.8,0.1866]
[1762525810432,0.002,3233.1,3232.4,3.09362362]
[1762525810755,0.002,3233.1,3232.7,3.0933791]
[1762525811074,0.002,3233.1,3232.7,0.4613]
[1762525811281,0.002,3233.1,3231.8,0.1866]
[1762525811593,0.002,3233.1,3232.8,0.4613]
[1762525811883,0.1878,3234.3,3232.8,0.4613]
[1762525811884,0.48521035,3235.3,3233.5,3.09254827]
[1762525812038,0.48521035,3235.3,3234.2,0.1866]
[1762525812243,0.4691,3235.9,3234.2,0.1866]
[1762525812452,0.48507169,3235.8,3234.3,0.4613]
[1762525812656,3.09061688,3235.6,3234.3,0.4613]
[1762525812851,3.09173061,3234.5,3233.8,0.4613]
[1762525813081,3.09195584,3234.2,3233.8,0.4613]
[1762525813240,3.09207051,3234.1,3233.4,0.1866]
[1762525813443,0.01954823,3234.1,3233.4,0.1866]
[1762525813681,0.01954823,3234.1,3231.8,7.17057633]
[1762525813682,0.01954823,3234.0,3232.9,0.4613]
[1762525813986,4.75758608,3233.8,3232.0,0.1866]
[1762525814294,0.60172981,3233.7,3232.1,0.49223963]
[1762525814590,0.01954823,3233.6,3232.1,0.4613]
[1762525814887,0.48664823,3233.6,3232.1,0.4613]
[1762525815038,1.259712,3233.2,3232.1,0.4613]
[1762525815242,0.01954823,3233.5,3232.1,0.4613]
[1762525815478,1.259712,3233.3,3232.1,0.4613]
[1762525815679,1.259712,3233.5,3232.1,0.4613]
[1762525815979,0.01954823,3233.5,3232.1,0.4613]
[1762525816186,0.405504,3233.8,3232.1,0.4613]
[1762525816385,1.259712,3233.5,3232.1,0.4613]
[1762525816549,0.77627306,3234.4,3232.3,3.09377223]
[1762525816880,0.4671,3234.4,3233.4,0.1866]
[1762525817080,6.93842642,3235.0,3232.5,3.09351437]
[1762525817081,3.09185913,3234.3,3232.5,3.09351437]
[1762525817285,6.93842642,3235.0,3232.6,3.09348512]
[1762525817286,3.09234819,3233.8,3232.6,3.09348512]
[1762525817488,0.405504,3234.7,3232.7,0.4613]
[1762525817645,1.27926023,3234.6,3232.7,0.4613]
[1762525817841,3.09219461,3234.0,3232.7,0.4613]
[1762525818185,0.405504,3233.6,3232.1,0.4613]
[1762525818682,3.09243281,3233.7,3232.1,0.4613]
[1762525818683,0.01954823,3233.7,3232.1,0.4613]
[1762525818883,3.09319011,3233.0,3232.5,0.1544]
[1762525819069,3.09319011,3233.0,3232.1,0.4613]
[1762525819070,0.1528,3232.7,3232.2,0.1544]
[1762525819273,3.09321055,3232.9,3232.1,3.55519979]
[1762525819459,3.09220324,3234.0,3232.6,3.09343153]
[1762525819657,0.405504,3234.1,3232.2,0.4613]
[1762525819973,1.259712,3233.4,3232.2,0.4613]
[1762525820143,0.01954823,3233.3,3232.2,0.4613]
[1762525820343,0.01954823,3233.6,3232.2,0.4613]
[1762525820586,0.1878,3234.1,3233.1,3.09295927]
[1762525820768,0.48664823,3234.0,3232.5,0.4613]
[1762525820972,1.259712,3233.6,3232.6,0.4613]
[1762525821159,3.09293939,3233.2,3232.6,0.4613]
[1762525821375,3.09289435,3233.3,3233.1,0.1866]
[1762525821786,3.52786272,3233.5,3233.1,0.1866]
[1762525821787,0.43521448,3233.5,3233.1,0.1866]
[1762525822100,0.4370737,3234.5,3233.2,0.4613]
[1762525822410,0.4671,3235.1,3233.3,0.03092815]
[1762525822707,0.95217169,3235.8,3234.7,0.1866]
[1762525822902,0.48507169,3235.8,3234.7,0.1866]
[1762525823110,0.01954823,3235.7,3234.8,0.4613]
[1762525823814,3.09107112,3235.2,3234.8,0.4613]
[1762525824016,1.387812,3234.9,3233.0,3.09307742]
[1762525824218,1.259712,3234.7,3233.5,0.4613]
[1762525824368,3.09183136,3234.4,3233.5,0.4613]
[1762525824567,1.259712,3234.5,3233.5,0.4613]
[1762525824877,3.09221284,3234.0,3233.5,0.4613]
[1762525825092,3.40144896,3234.0,3233.5,0.4613]
[1762525825299,3.09157237,3234.6,3233.5,0.4613]
[1762525825300,1.726812,3235.1,3233.5,0.4613]
[1762525825479,3.55771688,3235.6,3234.1,0.1866]
[1762525825683,1.726812,3235.6,3234.2,3.09189825]
[1762525825867,0.86652384,3235.5,3234.2,0.4613]
[1762525826067,0.02154823,3235.9,3234.3,0.4613]
[1762525826296,3.09137724,3234.9,3234.3,0.4613]
[1762525826491,1.259712,3235.3,3234.3,0.4613]
[1762525826696,3.0914515,3234.8,3234.3,0.4613]
[1762525826912,3.0914868,3234.7,3234.3,0.4613]
[1762525827096,0.61827725,3234.7,3234.3,0.4613]
[1762525827306,0.61827725,3234.7,3234.1,3.27860333]
[1762525827521,3.70977703,3234.7,3234.3,0.4613]
[1762525827697,0.61827725,3234.7,3234.3,3.55314863]
[1762525827901,0.407504,3235.7,3234.3,0.4613]
[1762525828237,3.09127702,3235.0,3234.4,0.4613]
[1762525828409,0.01954823,3235.4,3234.4,0.4613]
[1762525828608,3.09087545,3235.4,3234.4,0.4613]
[1762525828821,3.09099901,3235.2,3234.1,0.1866]
[1762525829021,0.1281,3234.5,3233.6,0.4613]
[1762525829211,3.09222042,3234.0,3233.6,0.4613]
[1762525829383,0.1528,3234.0,3233.6,0.4613]
[1762525829587,0.1528,3233.8,3233.2,0.1544]
[1762525829824,3.09248785,3233.7,3233.2,0.1544]
[1762525830127,3.09224387,3233.9,3233.1,0.1866]
[1762525830128,0.1528,3233.2,3233.1,0.1866]
[1762525830333,0.1528,3233.3,3233.1,0.1866]
[1762525830625,0.01954823,3233.2,3232.0,0.6479]
[1762525830823,0.1878,3233.9,3233.1,0.1866]
[1762525831021,0.405504,3234.8,3233.2,3.12378346]
[1762525831196,0.4671,3234.9,3233.2,0.68647432]
[1762525831197,1.259712,3234.6,3233.2,0.68647432]
[1762525831396,1.259712,3234.4,3233.8,3.09225797]
[1762525831698,3.09066523,3235.6,3234.4,3.09176233]
[1762525831897,3.09130612,3234.9,3234.3,3.27839235]
[1762525832327,1.259712,3235.4,3234.3,0.6479]
[1762525832528,1.259712,3234.9,3234.3,3.73969398]
[1762525832688,3.09127011,3235.0,3234.3,3.73969398]
[1762525832689,3.09140375,3234.8,3234.3,0.6479]
[1762525833020,4.35101643,3234.9,3234.3,3.73975503]
[1762525833234,0.4691,3235.7,3234.3,0.1866]
[1762525833398,0.002,3235.7,3234.5,3.09166795]
[1762525833723,3.09092967,3235.3,3234.6,3.09150999]
[1762525834267,3.0909608,3235.3,3234.6,0.4613]
[1762525834426,0.30909608,3235.2,3234.6,0.4613]
[1762525834630,0.30909608,3235.2,3234.7,3.09146621]
[1762525834864,0.30909608,3235.2,3234.6,0.4613]
[1762525835046,0.002,3235.7,3234.6,0.4613]
[1762525835242,3.09062394,3235.6,3235.0,3.09118862]
[1762525835465,3.09067854,3235.6,3234.6,0.4613]
[1762525835771,0.002,3235.7,3235.1,3.09103444]
[1762525835978,0.4514,3235.6,3234.3,0.1866]
[1762525836133,3.28357995,3235.5,3234.3,0.1866]
[1762525836469,3.09119306,3235.0,3234.3,0.6528]
[1762525836635,3.0912517,3235.0,3234.3,0.6528]
[1762525836836,1.259712,3235.2,3234.5,3.09163061]
[1762525837030,3.09080793,3235.4,3234.5,3.09166792]
[1762525837227,0.002,3235.7,3235.4,0.1803]
[1762525837445,0.002,3235.7,3234.6,0.49711572]
[1762525837446,0.002,3235.7,3234.6,0.4662]
[1762525837849,0.002,3235.7,3235.1,3.0910365]
[1762525838175,0.002,3235.7,3234.4,1.259712]
[1762525838176,3.09119248,3235.0,3234.3,3.27838156]
[1762525838379,0.01954823,3234.9,3234.3,0.1866]
[1762525838530,3.09090347,3235.3,3234.3,0.1866]
[1762525838734,0.31104517,3235.2,3234.6,3.09148714]
[1762525838988,0.31104517,3235.2,3234.3,0.1866]
[1762525838989,3.0911901,3235.0,3234.3,0.1866]
[1762525839147,3.09212546,3234.1,3233.8,0.1803]
[1762525839334,3.09212546,3234.1,3233.5,0.4662]
[1762525839335,0.405504,3234.6,3233.5,0.1803]
[1762525839671,1.73066023,3234.5,3233.1,0.6528]
[1762525839833,3.0924242,3233.8,3233.1,3.74578771]
[1762525840034,0.4514,3234.4,3233.1,0.1866]
[1762525840240,1.259712,3234.2,3231.3,6.93842642]
[1762525840583,0.4514,3234.4,3231.0,0.1803]
[1762525840584,0.01874823,3234.1,3232.0,0.4958]
[1762525840737,0.1528,3232.9,3232.4,0.1544]
[1762525841230,0.47738183,3232.9,3232.4,0.1544]
[1762525841444,0.65794823,3233.6,3231.9,0.1803]
[1762525841445,0.1528,3232.5,3232.1,3.09393351]
[1762525841655,0.1528,3232.5,3232.0,0.1544]
[1762525842187,0.1528,3232.5,3231.2,3.09477135]
[1762525842188,0.1316,3232.8,3231.3,0.4958]
[1762525842480,1.259712,3232.6,3231.3,0.4958]
[1762525842687,3.09367652,3232.4,3231.3,0.4958]
[1762525842987,3.09386795,3232.2,3230.8,0.6761]
[1762525843192,3.09476779,3231.3,3230.2,3.59157007]
[1762525843347,0.01874823,3232.1,3230.0,5.001]
[1762525843348,0.01874823,3231.2,3230.0,5.001]
[1762525843689,0.405504,3230.9,3230.0,5.001]
[1762525843851,0.4514,3231.1,3230.0,5.001]
[1762525844386,3.09546147,3230.6,3230.0,5.001]
[1762525844569,0.4514,3231.1,3230.0,5.001]
[1762525844891,3.09499257,3231.1,3230.2,3.09569638]
[1762525845115,0.4514,3231.5,3230.0,5.5011]
[1762525845116,1.259712,3230.7,3230.0,5.5011]
[1762525845286,3.09571938,3230.3,3230.0,5.001]
[1762525845590,3.09587938,3230.1,3230.0,5.001]
[1762525845759,4.35559138,3230.1,3230.0,5.001]
[1762525846298,4.3555054,3230.2,3230.0,5.001]
[1762525846495,3.09535143,3230.7,3230.0,5.001]
[1762525846679,3.09557841,3230.5,3230.0,5.001]
[1762525846885,1.259712,3230.1,3230.0,5.001]
[1762525847070,1.259712,3230.4,3230.0,5.001]
[1762525847271,1.259712,3230.5,3230.0,5.001]
[1762525847474,3.09587938,3230.1,3230.0,5.001]
[1762525847676,4.35559138,3230.1,3230.0,5.001]
[1762525848361,4.80699138,3230.1,3230.0,5.001]
[1762525848789,4.35559138,3230.1,3230.0,5.001]
[1762525849006,3.09587938,3230.1,3230.0,5.001]
[1762525849312,3.40546732,3230.1,3230.0,5.001]
[1762525849526,5.11657932,3230.1,3230.0,5.001]
[1762525850314,5.11657932,3230.1,3229.6,0.001]
[1762525850315,3.50176681,3229.7,3229.6,0.001]
[1762525850517,4.76176644,3229.4,3229.3,0.001]
[1762525850671,4.78051467,3229.4,3229.3,0.001]
[1762525850877,3.09785344,3228.1,3226.9,3.09885631]
[1762525851075,3.09707237,3228.9,3225.8,1.09274438]
[1762525851076,0.405504,3228.4,3227.0,0.1948]
[1762525851321,0.01874823,3228.3,3227.0,0.1948]
[1762525851502,0.4514,3228.3,3227.0,0.1948]
[1762525851703,1.665216,3228.0,3226.7,0.6906]
[1762525852015,1.665216,3228.0,3225.0,3.2955707]
[1762525852016,0.405504,3228.0,3226.3,0.6906]
[1762525852203,0.1528,3226.5,3226.3,0.1948]
[1762525852829,0.1528,3226.9,3226.4,0.4958]
[1762525852979,0.1528,3226.9,3226.8,3.09904549]
[1762525853319,0.1528,3227.2,3226.9,3.09892295]
[1762525853476,0.1528,3227.2,3227.1,3.09875739]
[1762525853677,0.1989,3228.9,3227.1,0.901304]
[1762525853924,0.4514,3229.6,3227.9,0.1476]
[1762525854220,0.47014823,3229.6,3228.5,3.09733383]
[1762525854524,0.82425259,3229.6,3228.0,0.901304]
[1762525854710,0.1989,3229.5,3228.1,3.59359746]
[1762525854879,3.09664633,3229.3,3228.1,3.59359461]
[1762525855224,3.09691663,3229.1,3228.3,3.09753822]
[1762525855374,3.09695058,3229.0,3228.3,3.09760555]
[1762525855572,0.01874823,3229.2,3228.2,0.4958]
[1762525855777,0.48588512,3229.3,3227.9,0.1476]
[1762525855978,0.405504,3229.1,3227.5,0.1948]
[1762525856178,3.09782961,3228.1,3227.5,0.1948]
[1762525856416,3.09781596,3228.1,3227.5,0.52413451]
[1762525856718,0.01874823,3228.0,3227.2,0.4958]
[1762525856918,0.01874823,3228.0,3226.7,0.4958]
[1762525857123,1.259712,3227.9,3226.3,0.6906]
[1762525857290,0.1989,3228.4,3226.3,0.6906]
[1762525857626,3.29642511,3228.4,3227.4,3.09846935]
[1762525857918,0.45561371,3228.3,3226.6,3.09916362]
[1762525858124,0.01874823,3228.7,3226.9,1.665216]
[1762525858422,3.09722179,3228.7,3226.7,3.09914153]
[1762525858603,1.259712,3228.5,3227.0,0.4958]
[1762525858776,3.09797586,3228.0,3227.3,3.0985019]
[1762525859000,3.09801586,3227.9,3227.2,3.09858684]
[1762525859292,3.09853309,3227.4,3226.4,0.4958]
[1762525859494,0.01874823,3227.8,3226.4,0.4958]
[1762525859495,3.09844154,3227.5,3226.4,0.4958]
[1762525859738,0.30980159,3227.9,3226.4,0.4958]
[1762525859892,1.259712,3228.2,3227.1,3.09869939]
[1762525860098,0.4514,3229.1,3227.5,3.09828601]
[1762525860397,0.1989,3230.8,3227.6,0.405504]
[1762525860609,0.93732572,3230.5,3229.4,3.09646999]
[1762525860811,3.09559187,3230.4,3229.0,0.6434]
[1762525861051,3.09434662,3231.7,3229.2,3.09674222]
[1762525861211,3.09353542,3232.6,3229.7,3.09626281]
[1762525861413,0.6503,3232.4,3230.0,3.09597523]
[1762525861617,0.6503,3232.8,3231.0,3.09501702]
[1762525861940,3.09310331,3233.0,3231.2,0.405504]
[1762525862144,0.1989,3233.5,3231.2,0.405504]
[1762525862145,0.21764823,3233.5,3231.5,0.405504]
[1762525862344,3.09298408,3233.2,3231.4,0.405504]
[1762525862497,4.3520083,3233.1,3232.2,3.09379757]
[1762525862696,0.43520083,3233.0,3231.7,3.09434662]
[1762525862943,0.4514,3234.0,3231.7,1.259712]
[1762525863142,0.4514,3234.0,3232.6,3.09341521]
[1762525863143,3.09246142,3233.7,3232.6,3.09341521]
[1762525863297,3.092982,3233.2,3231.8,0.6906]
[1762525863495,3.09321028,3232.9,3231.8,0.6906]
[1762525863729,3.09358916,3232.5,3231.3,3.59045924]
[1762525863959,0.1528,3231.9,3231.4,0.4958]
[1762525864279,0.1528,3232.1,3231.5,0.1544]
[1762525864837,0.1989,3232.7,3231.7,3.09431026]
[1762525865033,0.1989,3232.7,3231.2,0.1948]
[1762525865034,0.1964,3233.7,3231.9,3.09415514]
[1762525865381,0.1989,3235.1,3233.9,0.0974]
[1762525865382,0.4764,3234.9,3233.9,0.0974]
[1762525865675,0.002,3235.7,3233.9,0.0974]
[1762525865875,0.002,3235.7,3234.1,3.09205033]
[1762525866176,0.002,3235.7,3234.5,1.259712]
[1762525866177,0.17468486,3235.6,3234.5,1.259712]
[1762525866475,0.002,3235.7,3235.1,3.09107025]
[1762525866676,0.002,3235.7,3235.6,3.09061688]
[1762525866883,0.002,3235.7,3235.6,5.24543288]
[1762525867069,0.002,3236.1,3235.8,3.49592986]
[1762525867238,0.002,3236.1,3235.8,3.31293011]
[1762525867573,0.002,3236.1,3235.8,3.77162586]
[1762525867881,0.002,3236.1,3235.8,0.6812]
[1762525868050,0.002,3236.1,3235.5,3.09064072]
[1762525868261,0.002,3236.1,3235.1,3.09109455]
[1762525868441,0.002,3236.1,3235.8,3.68752986]
[1762525868777,0.002,3236.1,3236.0,3.49573885]
[1762525869073,0.002,3236.1,3236.0,0.405504]
[1762525869275,0.002,3236.1,3236.0,3.57983485]
[1762525869766,0.002,3236.1,3236.0,3.98533885]
[1762525870165,0.002,3236.1,3236.0,0.4896]
[1762525870481,0.002,3236.1,3236.0,3.57983485]
[1762525870641,0.002,3236.1,3236.0,0.4896]
[1762525870845,0.002,3236.1,3236.0,3.57983485]
[1762525871068,0.002,3236.1,3236.0,3.98533885]
[1762525871270,0.002,3236.1,3236.0,3.57983485]
[1762525871500,0.002,3236.1,3236.0,3.09023485]
[1762525871707,0.002,3236.1,3236.0,5.27595319]
[1762525871911,0.002,3236.1,3236.0,0.4896]